[Event "Championship of RSO-Alania 2020"]
[Site "Vladikavkaz, Russia"]
[Date "2021.01.05"]
[Round "5.3"]
[White "Agkatsev, Albert A"]
[Black "Tandelov, Arseny"]
[Result "1-0"]
[TimeControl "90+30"]
[WhiteElo "1550"]
[BlackElo "1657"]

1. d4 {[%emt 00:00:34]} d5 {[%emt 00:00:02]} 2. Nf3 Nf6 {[%emt 00:00:01]} 3. b3
c5 4. e3 {[%emt 00:00:07]} e6 5. Bb2 {[%emt 00:00:01]} Nc6 6. c4 b6 7. Nbd2
{[%emt 00:00:02]} Bb7 {[%emt 00:00:01]} 8. cxd5 {[%emt 00:00:06]} exd5 {[%emt
00:00:02]} 9. Bd3 {[%emt 00:00:07]} Bd6 {[%emt 00:00:01]} 10. Ne5 Ne7 11. f4
{[%emt 00:00:03]} Ne4 {[%emt 00:00:03]} 12. Bb5+ {[%emt 00:00:06]} Kf8 {[%emt
00:00:01]} 13. Nxe4 {[%emt 00:00:07]} dxe4 {[%emt 00:00:01]} 14. Nd7+ {[%emt
00:00:02]} Kg8 {[%emt 00:00:02]} 15. Qg4 Ng6 16. O-O-O {[%emt 00:00:03]} Qc7
{[%emt 00:00:02]} 17. Kb1 {[%emt 00:00:02]} h5 {[%emt 00:00:03]} 18. Qf5 {[%emt
00:00:03]} Bc6 {[%emt 00:00:03]} 19. Bxc6 {[%emt 00:00:01]} Qxc6 {[%emt
00:00:02]} 20. dxc5 {[%emt 00:00:04]} Bxc5 21. Nxc5 {[%emt 00:00:01]} bxc5 22.
Rd7 {[%emt 00:00:01]} Rf8 {[%emt 00:00:01]} 23. Rhd1 Rh6 {[%emt 00:00:01]} 24.
R1d6 Qb5 25. Rd8 {[%emt 00:00:07]} Qf1+ {[%emt 00:00:01]} 26. Rd1 {[%emt
00:00:04]} Qxg2 {[%emt 00:00:01]} 27. Qxc5 {[%emt 00:00:33]} Rxd8 {[%emt
00:00:02]} 28. Rxd8+ Kh7 {[%emt 00:00:01]} 29. a4 {[%emt 00:00:01]} Qg4 {[%emt
00:00:08]} 30. Qg5 {[%emt 00:00:02]} Nh4 {[%emt 00:00:01]} 31. Rh8+ {[%emt
00:00:02]} Kxh8 {[%emt 00:00:02]} 32. Bxg7+ Kg8 33. Bxh6+ Qxg5 {[%emt
00:00:02]} 34. Bxg5 {[%emt 00:00:02]} Nf5 {[%emt 00:00:02]} 35. Bf6 {[%emt
00:00:32]} Kf8 {[%emt 00:00:02]} 36. Bd4 Nxd4 {[%emt 00:00:02]} 37. exd4 a5
{[%emt 00:00:02]} 38. Kc2 {[%emt 00:00:02]} Ke7 39. Kc3 Kd6 40. b4 axb4+ {[%emt
00:00:01]} 41. Kxb4 {[%emt 00:00:01]} Kc6 {[%emt 00:00:08]} 42. f5 {[%emt
00:00:01]} h4 {[%emt 00:00:04]} 43. Kc4 {[%emt 00:00:02]} f6 44. d5+ Kd6 {[%emt
00:00:01]} 45. Kd4 e3 46. Kxe3 Kxd5 47. Kf4 Kc4 {[%emt 00:00:02]} 48. Kg4 Kb4
49. Kxh4 {[%emt 00:00:01]} Kxa4 50. Kh5 {[%emt 00:00:03]} 1-0

[Event "Championship of RSO-Alania 2020"]
[Site "Vladikavkaz, Russia"]
[Date "2021.01.05"]
[Round "5.5"]
[White "Shkurupiy, Konstantin"]
[Black "Ryazanov, Nikolay"]
[Result "0-1"]
[TimeControl "90+30"]
[WhiteElo "1592"]
[BlackElo "1788"]

1. Nf3 {[%emt 00:00:12]} d5 2. g3 {[%emt 00:00:03]} Nf6 {[%emt 00:00:01]} 3.
Bg2 {[%emt 00:01:51]} e6 4. O-O {[%emt 00:00:02]} Be7 {[%emt 00:00:01]} 5. d3
{[%emt 00:00:04]} c5 6. Nbd2 {[%emt 00:00:06]} Nc6 {[%emt 00:00:01]} 7. a3
{[%emt 00:00:04]} b6 8. c4 {[%emt 00:00:03]} Bb7 {[%emt 00:00:01]} 9. h3 {[%emt
00:00:03]} d4 {[%emt 00:00:01]} 10. b4 {[%emt 00:00:04]} O-O {[%emt 00:00:02]}
11. Qb3 {[%emt 00:00:05]} Qc7 12. Bb2 {[%emt 00:00:04]} e5 13. b5 {[%emt
00:00:09]} Na5 {[%emt 00:00:01]} 14. Qc2 {[%emt 00:00:03]} Rfe8 {[%emt
00:00:01]} 15. Ne4 {[%emt 00:00:05]} Nh5 {[%emt 00:00:02]} 16. h4 {[%emt
00:00:07]} f5 17. Ned2 {[%emt 00:00:09]} Bd6 {[%emt 00:00:01]} 18. Nb3 {[%emt
00:00:08]} Nxb3 {[%emt 00:00:01]} 19. Qxb3 {[%emt 00:00:03]} Kh8 {[%emt
00:00:03]} 20. Rad1 {[%emt 00:00:05]} e4 {[%emt 00:00:04]} 21. dxe4 {[%emt
00:00:05]} fxe4 {[%emt 00:00:01]} 22. Ng5 {[%emt 00:00:06]} h6 23. Nh3 {[%emt
00:00:02]} e3 {[%emt 00:00:04]} 24. Bxb7 {[%emt 00:00:11]} Qxb7 {[%emt
00:00:01]} 25. Qd3 {[%emt 00:00:07]} exf2+ {[%emt 00:00:02]} 26. Rxf2 {[%emt
00:00:02]} Re3 {[%emt 00:00:01]} 27. Qxe3 {[%emt 00:00:07]} dxe3 {[%emt
00:00:02]} 28. Rf5 {[%emt 00:00:06]} Nxg3 {[%emt 00:00:06]} 29. Rfd5 {[%emt
00:00:07]} Rf8 {[%emt 00:00:03]} 30. Bc1 {[%emt 00:00:07]} Nxe2+ {[%emt
00:00:01]} 0-1

[Event "Championship of RSO-Alania 2020"]
[Site "Vladikavkaz, Russia"]
[Date "2021.01.05"]
[Round "5.6"]
[White "Koraev, Kazbek"]
[Black "Dzhibilov, David"]
[Result "1/2-1/2"]
[TimeControl "90+30"]
[WhiteElo "1755"]
[BlackElo "1363"]

1. e4 {[%emt 00:00:56]} e6 {[%emt 00:00:01]} 2. d4 {[%emt 00:00:07]} d5 {[%emt
00:00:01]} 3. Nd2 {[%emt 00:00:01]} Nf6 {[%emt 00:00:03]} 4. e5 {[%emt
00:00:02]} Nfd7 5. Bd3 {[%emt 00:00:01]} c5 {[%emt 00:00:03]} 6. c3 {[%emt
00:00:01]} Nc6 {[%emt 00:00:03]} 7. Ne2 Qb6 {[%emt 00:00:03]} 8. Nf3 {[%emt
00:00:01]} cxd4 9. cxd4 Be7 {[%emt 00:00:03]} 10. O-O {[%emt 00:00:03]} O-O
{[%emt 00:00:02]} 11. a3 {[%emt 00:00:03]} a5 12. Rb1 {[%emt 00:00:06]} f6
{[%emt 00:00:02]} 13. exf6 {[%emt 00:00:02]} Nxf6 {[%emt 00:00:02]} 14. Bg5
{[%emt 00:00:05]} Qc7 {[%emt 00:00:13]} 15. Rc1 {[%emt 00:00:31]} Ne8 {[%emt
00:00:08]} 16. Bb1 {[%emt 00:00:12]} Bxg5 17. Nxg5 h6 18. Nf3 {[%emt 00:00:15]}
Qe7 {[%emt 00:00:05]} 19. Ne5 {[%emt 00:00:26]} Nxe5 {[%emt 00:00:17]} 20. dxe5
{[%emt 00:00:02]} Bd7 {[%emt 00:00:08]} 21. Qd3 g5 {[%emt 00:00:10]} 22. f4 Rc8
{[%emt 00:00:04]} 23. fxg5 {[%emt 00:00:10]} hxg5 {[%emt 00:00:17]} 24. Rxf8+
{[%emt 00:00:08]} Kxf8 {[%emt 00:00:01]} 25. Rf1+ Kg8 {[%emt 00:00:02]} 26.
Qg6+ {[%emt 00:00:08]} Qg7 {[%emt 00:00:01]} 27. Qh5 Bb5 {[%emt 00:00:03]} 28.
Bh7+ {[%emt 00:00:03]} Qxh7 {[%emt 00:00:06]} 29. Rf8+ {[%emt 00:00:03]} Kxf8
{[%emt 00:00:02]} 30. Qxh7 Bxe2 {[%emt 00:00:01]} 31. Qd7 {[%emt 00:00:23]}
Rc1+ {[%emt 00:00:03]} 32. Kf2 {[%emt 00:00:02]} Rc2 {[%emt 00:00:01]} 33. Qd8
{[%emt 00:00:07]} Rxb2 {[%emt 00:00:03]} 34. Qxg5 {[%emt 00:00:05]} Bg4+ {[%emt
00:00:04]} 35. Kf1 {[%emt 00:00:02]} Be2+ {[%emt 00:00:02]} 36. Kf2 {[%emt
00:00:01]} Bg4+ 37. Kf1 Bf5 38. g4 {[%emt 00:00:01]} Bd3+ {[%emt 00:00:07]} 39.
Ke1 {[%emt 00:00:08]} b5 {[%emt 00:00:11]} 40. Kd1 {[%emt 00:00:01]} b4 {[%emt
00:00:10]} 41. axb4 axb4 42. Qe3 {[%emt 00:00:06]} Be4 {[%emt 00:00:08]} 43.
Kc1 {[%emt 00:00:12]} Rc2+ 44. Kd1 {[%emt 00:00:03]} Rc3 {[%emt 00:00:11]} 45.
Qb6 {[%emt 00:00:02]} Rb3 {[%emt 00:00:09]} 46. Qxe6 {[%emt 00:00:33]} Rb1+
{[%emt 00:00:02]} 47. Kd2 {[%emt 00:00:04]} b3 48. Qd7 {[%emt 00:00:02]} b2
{[%emt 00:00:01]} 49. e6 {[%emt 00:00:05]} Bg6 {[%emt 00:00:29]} 50. Kc3 {[%emt
00:00:03]} Nf6 {[%emt 00:00:05]} 51. Qd8+ {[%emt 00:00:01]} Ne8 {[%emt
00:00:02]} 52. Qd7 Nf6 {[%emt 00:00:01]} 53. Qd8+ Ne8 54. Qd7 1/2-1/2

[Event "Championship of RSO-Alania 2020"]
[Site "Vladikavkaz, Russia"]
[Date "2021.01.06"]
[Round "6.1"]
[White "Agkatsev, Albert A"]
[Black "Dryaeva, Lana"]
[Result "0-1"]
[TimeControl "90+30"]
[WhiteElo "1550"]
[BlackElo "1404"]

1. Nf3 {[%clk 01:30:57]} {[%emt 00:00:03]} Nf6 {[%clk 01:24:30]} {[%emt
00:06:31]} 2. b3 {[%clk 01:28:43]} {[%emt 00:02:43]} d5 {[%clk 01:23:38]}
{[%emt 00:01:22]} 3. e3 {[%clk 01:28:47]} {[%emt 00:00:27]} e6 {[%clk
01:23:39]} {[%emt 00:00:29]} 4. Bb2 {[%clk 01:29:00]} {[%emt 00:00:16]} b6
{[%clk 01:23:45]} {[%emt 00:00:25]} 5. d4 {[%clk 01:29:09]} {[%emt 00:00:20]}
Be7 {[%clk 01:23:33]} {[%emt 00:00:42]} 6. Nbd2 {[%clk 01:29:17]} {[%emt
00:00:22]} O-O {[%clk 01:23:58]} {[%emt 00:00:05]} 7. Bd3 {[%clk 01:29:23]}
{[%emt 00:00:23]} c5 {[%clk 01:24:13]} {[%emt 00:00:16]} 8. c4 {[%clk
01:29:32]} {[%emt 00:00:20]} Bb7 {[%clk 01:24:33]} {[%emt 00:00:10]} 9. cxd5
{[%clk 01:29:47]} {[%emt 00:00:15]} exd5 {[%clk 01:23:32]} {[%emt 00:01:32]} 10.
Ne5 {[%clk 01:29:54]} {[%emt 00:00:23]} Nc6 {[%clk 01:19:21]} {[%emt 00:04:41]}
11. O-O {[%clk 01:29:23]} {[%emt 00:01:01]} Nxe5 {[%clk 01:02:54]} {[%emt
00:16:57]} 12. dxe5 {[%clk 01:29:50]} {[%emt 00:00:02]} Ne4 {[%clk 01:01:57]}
{[%emt 00:01:28]} 13. Bxe4 {[%clk 01:13:07]} {[%emt 00:17:13]} dxe4 {[%clk
01:02:15]} {[%emt 00:00:11]} 14. Nc4 {[%clk 01:13:08]} {[%emt 00:00:29]} f5
{[%clk 00:35:41]} {[%emt 00:27:04]} 15. exf6 {[%clk 01:11:52]} {[%emt
00:01:46]} Bxf6 {[%clk 00:36:01]} {[%emt 00:00:11]} 16. Bxf6 {[%clk 01:09:27]}
{[%emt 00:02:55]} Qxf6 {[%clk 00:32:38]} {[%emt 00:03:53]} 17. Qd6 {[%clk
01:09:21]} {[%emt 00:00:35]} Rad8 {[%clk 00:32:18]} {[%emt 00:00:51]} 18. Qxf6
{[%clk 01:09:45]} {[%emt 00:00:06]} gxf6 {[%clk 00:32:46]} {[%emt 00:00:02]} 19.
Rfd1 {[%clk 01:09:53]} {[%emt 00:00:22]} Ba6 {[%clk 00:29:44]} {[%emt
00:03:33]} 20. Nd6 {[%clk 01:05:04]} {[%emt 00:05:19]} Bd3 {[%clk 00:25:56]}
{[%emt 00:04:18]} 21. Nf5 {[%clk 01:01:32]} {[%emt 00:04:02]} Rd7 {[%clk
00:25:13]} {[%emt 00:01:13]} 22. Rd2 {[%clk 01:01:46]} {[%emt 00:00:16]} Rfd8
{[%clk 00:25:34]} {[%emt 00:00:09]} 23. Rad1 {[%clk 01:02:05]} {[%emt
00:00:11]} Kf7 {[%clk 00:21:53]} {[%emt 00:04:11]} 24. Ng3 {[%clk 01:01:41]}
{[%emt 00:00:53]} Ke6 {[%clk 00:22:11]} {[%emt 00:00:13]} 25. f3 {[%clk
01:01:36]} {[%emt 00:00:35]} f5 {[%clk 00:15:58]} {[%emt 00:06:43]} 26. Kf2
{[%clk 01:00:15]} {[%emt 00:01:50]} b5 {[%clk 00:12:22]} {[%emt 00:04:07]} 27.
Ne2 {[%clk 00:59:56]} {[%emt 00:00:49]} Ke7 {[%clk 00:01:09]} {[%emt 00:11:43]}
28. Nc3 {[%clk 00:59:16]} {[%emt 00:01:09]} a6 {[%clk 00:00:44]} {[%emt
00:00:55]} 29. h3 {[%clk 00:59:17]} {[%emt 00:00:29]} Ke8 {[%emt 00:00:52]} 30.
g4 {[%clk 00:58:19]} {[%emt 00:01:19]} exf3 {[%clk 00:00:45]} {[%emt 00:00:16]}
31. gxf5 {[%clk 00:56:27]} {[%emt 00:02:23]} Bxf5 {[%clk 00:01:02]} {[%emt
00:00:13]} 32. Rxd7 {[%clk 00:54:25]} {[%emt 00:02:32]} Rxd7 {[%clk 00:01:32]}
33. Rxd7 {[%clk 00:53:44]} {[%emt 00:01:12]} Kxd7 {[%clk 00:02:01]} {[%emt
00:00:01]} 34. h4 {[%clk 00:53:50]} {[%emt 00:00:24]} b4 {[%clk 00:01:28]}
{[%emt 00:01:03]} 35. Na4 {[%clk 00:52:52]} {[%emt 00:01:28]} Kc6 {[%clk
00:01:20]} {[%emt 00:00:38]} 36. Kxf3 {[%clk 00:49:47]} {[%emt 00:03:35]} Bb1
{[%clk 00:01:48]} {[%emt 00:00:01]} 37. Nb2 {[%clk 00:50:15]} {[%emt 00:00:02]}
Bxa2 {[%clk 00:02:00]} {[%emt 00:00:18]} 38. Nc4 {[%clk 00:50:42]} {[%emt
00:00:04]} Bxb3 {[%clk 00:01:37]} {[%emt 00:00:53]} 39. Na5+ {[%clk 00:51:10]}
{[%emt 00:00:01]} Kd5 {[%clk 00:01:29]} {[%emt 00:00:39]} 40. Nxb3 {[%clk
00:51:36]} {[%emt 00:00:04]} c4 {[%clk 00:01:58]} {[%emt 00:00:01]} 41. Nc1
{[%clk 00:51:22]} {[%emt 00:00:44]} b3 {[%clk 00:02:10]} {[%emt 00:00:17]} 42.
Ne2 {[%clk 00:50:58]} {[%emt 00:00:54]} a5 {[%clk 00:02:12]} {[%emt 00:00:29]}
43. e4+ {[%clk 00:51:03]} {[%emt 00:00:25]} Ke5 {[%clk 00:01:01]} {[%emt
00:01:41]} 44. Nc3 {[%clk 00:48:05]} {[%emt 00:03:27]} Kd4 {[%clk 00:00:50]}
{[%emt 00:00:42]} 45. Nb5+ {[%clk 00:48:21]} {[%emt 00:00:14]} Kd3 {[%clk
00:00:47]} {[%emt 00:00:33]} 46. e5 {[%clk 00:48:23]} {[%emt 00:00:28]} b2
{[%clk 00:00:41]} {[%emt 00:00:36]} 47. Na3 {[%clk 00:48:50]} {[%emt 00:00:04]}
c3 {[%clk 00:00:56]} {[%emt 00:00:14]} 48. e6 {[%clk 00:49:19]} c2 {[%clk
00:01:26]} 49. Nxc2 {[%clk 00:49:40]} {[%emt 00:00:09]} b1=Q {[%clk 00:01:27]}
{[%emt 00:00:28]} 50. e7 {[%clk 00:50:06]} {[%emt 00:00:04]} Qb7 {[%clk
00:01:53]} {[%emt 00:00:04]} 51. Kf2 {[%clk 00:50:30]} {[%emt 00:00:06]} Qxe7
{[%clk 00:02:13]} {[%emt 00:00:10]} 52. Ne1+ {[%clk 00:50:50]} {[%emt
00:00:10]} Qxe1+ {[%clk 00:02:28]} {[%emt 00:00:15]} 53. Kxe1 {[%clk 00:51:17]}
{[%emt 00:00:04]} Kc2 {[%clk 00:02:51]} {[%emt 00:00:07]} 54. Ke2 {[%clk
00:51:42]} {[%emt 00:00:04]} a4 {[%clk 00:03:18]} {[%emt 00:00:03]} 55. Kf3
{[%clk 00:52:09]} {[%emt 00:00:03]} a3 {[%clk 00:03:44]} {[%emt 00:00:04]} 56.
Kg4 {[%emt 00:00:03]} a2 {[%clk 00:04:08]} {[%emt 00:00:06]} 57. Kh5 {[%clk
00:53:04]} {[%emt 00:00:01]} a1=Q {[%clk 00:04:24]} {[%emt 00:00:15]} 58. Kh6
{[%clk 00:53:32]} {[%emt 00:00:03]} Qa7 {[%clk 00:04:34]} {[%emt 00:00:20]} 59.
h5 {[%clk 00:53:56]} {[%emt 00:00:05]} Kd3 {[%clk 00:04:55]} {[%emt 00:00:09]}
60. Kg5 {[%clk 00:54:23]} {[%emt 00:00:03]} Qg7+ {[%clk 00:05:16]} {[%emt
00:00:09]} 61. Kf5 {[%clk 00:54:47]} {[%emt 00:00:06]} h6 {[%clk 00:05:20]}
{[%emt 00:00:26]} 62. Ke5 {[%emt 00:00:13]} Kd4+ 0-1

[Event "Championship of RSO-Alania 2020"]
[Site "Vladikavkaz, Russia"]
[Date "2021.01.06"]
[Round "6.2"]
[White "Bogov, Khetag"]
[Black "Tandelov, Arseny"]
[Result "0-1"]
[TimeControl "90+30"]
[WhiteElo "1263"]
[BlackElo "1657"]

1. e4 {[%clk 01:30:57]} {[%emt 00:00:01]} c5 {[%clk 01:30:25]} {[%emt
00:00:36]} 2. Nf3 {[%clk 01:31:19]} {[%emt 00:00:08]} Nc6 {[%clk 01:30:52]}
{[%emt 00:00:03]} 3. d4 {[%clk 01:31:40]} {[%emt 00:00:08]} cxd4 {[%clk
01:31:19]} {[%emt 00:00:03]} 4. Nxd4 {[%clk 01:32:03]} {[%emt 00:00:07]} e5
{[%clk 01:31:32]} {[%emt 00:00:18]} 5. Nb5 {[%clk 01:32:27]} {[%emt 00:00:06]}
Nf6 {[%clk 01:31:56]} {[%emt 00:00:05]} 6. N1c3 {[%clk 01:32:48]} {[%emt
00:00:09]} d6 {[%clk 01:32:23]} {[%emt 00:00:03]} 7. Bg5 {[%clk 01:33:00]}
{[%emt 00:00:18]} a6 {[%clk 01:32:49]} {[%emt 00:00:04]} 8. Na3 {[%clk
01:33:26]} {[%emt 00:00:04]} b5 {[%clk 01:33:16]} {[%emt 00:00:03]} 9. Nd5
{[%clk 01:33:50]} {[%emt 00:00:05]} Be7 {[%clk 01:33:42]} {[%emt 00:00:04]} 10.
Bxf6 {[%clk 01:34:16]} {[%emt 00:00:05]} Bxf6 {[%clk 01:34:08]} {[%emt
00:00:04]} 11. c3 {[%clk 01:34:40]} {[%emt 00:00:06]} O-O {[%clk 01:34:20]}
{[%emt 00:00:18]} 12. Nc2 {[%clk 01:34:35]} {[%emt 00:00:35]} Bg5 {[%clk
01:34:43]} {[%emt 00:00:07]} 13. a4 {[%clk 01:34:46]} {[%emt 00:00:19]} bxa4
{[%clk 01:34:58]} {[%emt 00:00:15]} 14. Rxa4 {[%clk 01:35:09]} {[%emt
00:00:06]} f5 {[%clk 01:34:58]} {[%emt 00:00:31]} 15. Bc4 {[%clk 01:35:01]}
{[%emt 00:00:38]} Kh8 {[%clk 01:35:18]} {[%emt 00:00:11]} 16. O-O {[%clk
01:29:13]} {[%emt 00:06:18]} fxe4 {[%clk 01:32:15]} {[%emt 00:03:32]} 17. Qe2
{[%clk 01:29:34]} {[%emt 00:00:09]} Ne7 {[%clk 01:30:47]} {[%emt 00:01:58]} 18.
Ncb4 {[%clk 01:26:15]} {[%emt 00:03:49]} Bb7 {[%clk 01:28:45]} {[%emt
00:02:33]} 19. Rd1 {[%clk 01:21:24]} {[%emt 00:05:20]} a5 {[%clk 01:28:41]}
{[%emt 00:00:34]} 20. Nc2 {[%clk 01:21:22]} {[%emt 00:00:32]} Rc8 {[%clk
01:28:34]} {[%emt 00:00:38]} 21. Ba2 {[%clk 01:20:19]} {[%emt 00:01:33]} Rc5
{[%clk 01:26:54]} {[%emt 00:02:10]} 22. c4 {[%clk 01:17:07]} {[%emt 00:03:43]}
Nxd5 {[%clk 01:23:24]} {[%emt 00:03:59]} 23. cxd5 {[%clk 01:17:22]} {[%emt
00:00:15]} Qb6 {[%clk 01:19:29]} {[%emt 00:04:25]} 24. b4 {[%clk 01:08:01]}
{[%emt 00:09:51]} Rxc2 {[%clk 01:19:10]} {[%emt 00:00:49]} 25. Qxc2 {[%clk
01:07:52]} {[%emt 00:00:39]} Rxf2 {[%clk 01:19:29]} {[%emt 00:00:10]} 26. bxa5
{[%clk 01:07:20]} {[%emt 00:01:03]} Qa7 {[%clk 01:19:19]} {[%emt 00:00:39]} 27.
Qxf2 {[%clk 01:07:13]} {[%emt 00:00:38]} Be3 {[%clk 01:19:43]} {[%emt
00:00:06]} 28. Rf1 {[%clk 01:07:23]} {[%emt 00:00:20]} h6 {[%clk 01:19:24]}
{[%emt 00:00:49]} 29. Rxe4 {[%clk 01:07:26]} {[%emt 00:00:27]} Bxf2+ {[%clk
01:19:31]} {[%emt 00:00:23]} 30. Rxf2 {[%clk 01:07:51]} {[%emt 00:00:04]} Qxa5
{[%clk 01:19:47]} {[%emt 00:00:14]} 31. Bc4 {[%clk 01:07:33]} {[%emt 00:00:48]}
Bxd5 {[%clk 01:19:55]} {[%emt 00:00:22]} 32. Bxd5 {[%clk 01:07:38]} {[%emt
00:00:26]} Qxd5 {[%clk 01:20:21]} {[%emt 00:00:04]} 33. Re1 {[%clk 01:07:49]}
{[%emt 00:00:19]} Qd4 {[%clk 01:20:43]} {[%emt 00:00:08]} 34. Kf1 {[%clk
01:08:08]} {[%emt 00:00:11]} e4 {[%clk 01:21:07]} {[%emt 00:00:06]} 35. Rfe2
{[%clk 01:08:25]} {[%emt 00:00:11]} d5 {[%clk 01:21:33]} {[%emt 00:00:06]} 36.
Re3 {[%clk 01:08:41]} {[%emt 00:00:14]} Kh7 {[%clk 01:21:52]} {[%emt 00:00:11]}
37. h3 {[%clk 01:08:46]} {[%emt 00:00:25]} Kg6 {[%clk 01:22:17]} {[%emt
00:00:05]} 38. Rg3+ {[%clk 01:08:59]} {[%emt 00:00:17]} Kf6 {[%clk 01:22:42]}
{[%emt 00:00:05]} 39. Rge3 {[%clk 01:09:13]} {[%emt 00:00:17]} g5 {[%clk
01:22:58]} {[%emt 00:00:13]} 40. Kg1 {[%clk 01:09:32]} {[%emt 00:00:12]} Ke5
{[%clk 01:23:12]} {[%emt 00:00:16]} 41. Kh2 {[%clk 01:09:47]} {[%emt 00:00:14]}
Qd2 {[%clk 01:23:27]} {[%emt 00:00:16]} 42. R1e2 {[%clk 01:10:02]} {[%emt
00:00:15]} Qc1 {[%clk 01:23:51]} {[%emt 00:00:05]} 43. Re1 {[%clk 01:10:24]}
{[%emt 00:00:08]} Qc6 {[%clk 01:24:15]} {[%emt 00:00:06]} 44. Kg3 {[%clk
01:10:16]} {[%emt 00:00:38]} d4 {[%clk 01:24:38]} {[%emt 00:00:07]} 45. R3e2
{[%clk 01:10:31]} {[%emt 00:00:15]} d3 {[%clk 01:24:57]} {[%emt 00:00:11]} 46.
Rd2 {[%clk 01:10:50]} {[%emt 00:00:11]} Qc3 {[%clk 01:25:17]} {[%emt 00:00:09]}
47. Red1 {[%clk 01:11:09]} {[%emt 00:00:12]} Kd4 {[%clk 01:25:41]} {[%emt
00:00:06]} 48. Ra2 {[%clk 01:11:25]} {[%emt 00:00:13]} d2+ {[%clk 01:26:02]}
{[%emt 00:00:10]} 49. Kh2 {[%clk 01:11:48]} {[%emt 00:00:07]} e3 {[%clk
01:26:27]} {[%emt 00:00:05]} 50. Rda1 {[%clk 01:12:14]} {[%emt 00:00:04]} e2
{[%clk 01:26:36]} {[%emt 00:00:21]} 51. Ra4+ {[%clk 01:12:41]} {[%emt
00:00:04]} Kd3 {[%clk 01:27:02]} {[%emt 00:00:04]} 52. Ra8 {[%clk 01:12:47]}
{[%emt 00:00:24]} d1=Q {[%clk 01:26:49]} {[%emt 00:00:42]} 53. Rd8+ {[%clk
01:13:11]} {[%emt 00:00:06]} Kc2 {[%clk 01:27:14]} {[%emt 00:00:05]} 54. Ra2+
{[%clk 01:13:38]} {[%emt 00:00:04]} Kb3 {[%clk 01:27:39]} {[%emt 00:00:04]} 0-1